Cogmind - Beta 10.2 @@@ ROGUE MODE // 2021.09.24 @ 21:08:33 Player: moonlol Result: Destroyed by Y-54 Guardian with Gatling Laser Performance ------------- Evolutions (3) 1500 Regions Visited (7) 1400 Robots Destroyed (42) 210 Value Destroyed (1178) 1178 Prototype IDs (7) 140 Alien Tech Used (0) 0 Bonus (563) 563 TOTAL SCORE: 4991 Bonus ------- Entered Garrisons 200 Used RIF Installer 500 Friendly Fire -137 Cogmind --------- Core Integrity 0/700 Matter 189/300 Energy 150/150 System Corruption 9% Temperature Cool (6) Movement Hovering (120) Ox1 Location -7/Factory Parts ------- > --- POWER (1) -------- Micro Nuclear Core > --- PROPULSION (4) --- Improved Hover Unit > --- UTILITY (6) ------ Advanced Weight Redist. System Advanced Visual Processing Unit Enhanced Optical Array Improved Signal Interpreter Hacking Suite System Shield > --- WEAPON (2) ------- Improved Spread Laser > --- INVENTORY (4) ---- Advanced Weight Redist. System Advanced Assault Cannon Advanced Assault Cannon Peak State ------------ > --- POWER ------------ Micro Nuclear Core > --- PROPULSION ------- Light Treads VTOL Module Improved Flight Unit Cesium-ion Thruster > --- UTILITY ---------- Experimental Sensor Array Improved Signal Interpreter Hacking Suite Hacking Suite System Shield System Shield > --- WEAPON ----------- Backup Laser VII Enhanced Autogun > --- INVENTORY -------- Advanced Weight Redist. System Advanced Weight Redist. System Remote Datajack [Rating: 45] Favorites ----------- Power Light Nuclear Core Engine Light Ion Engine Power Core Light Nuclear Core Propulsion VTOL Module Treads Light Treads Leg Titanium Leg Hover Unit Airjet Flight Unit VTOL Module Utility Hacking Suite Device Experimental Sensor Array Storage Small Storage Unit Processor Improved Signal Interpreter Hackware Hacking Suite Protection Core Shielding Weapon Assault Rifle Energy Gun Medium Laser Energy Cannon Light EM Pulse Cannon Ballistic Gun Assault Rifle Ballistic Cannon Advanced Assault Cannon Special Weapon Remote Datajack Build | -11 -10 -10 -9 -8 -7 -7 -7 ------- Run | Scr Mat Min Mat Mat Fac Gar Fac Slots Evolved 6 | . . . 2 2 2 . . Power . | . . . . . . . . Propulsion 2 | . . . 1 1 . . . Utility 4 | . . . 1 1 2 . . Weapon . | . . . . . . . . Parts Attached 79 | 6 10 6 4 33 10 2 8 Power 9 | 1 2 1 . 3 1 . 1 Engine 3 | 1 . . . 2 . . . Core 6 | . 2 1 . 1 1 . 1 Reactor . | . . . . . . . . Propulsion 28 | 2 2 1 2 18 2 . 1 Treads 4 | 2 . . . 2 . . . Leg 4 | . . 1 . 3 . . . Wheel . | . . . . . . . . Hover 4 | . . . . 3 . . 1 Flight 16 | . 2 . 2 10 2 . . Utility 14 | 1 2 1 2 1 4 1 2 Device 4 | . . 1 . . 2 . 1 Storage 2 | 1 1 . . . . . . Processor 3 | . . . . 1 . 1 1 Hackware 4 | . . . 2 . 2 . . Protection 1 | . 1 . . . . . . Artifact . | . . . . . . . . Weapon 28 | 2 4 3 . 11 3 1 4 Energy Gun 11 | 1 2 1 . 5 1 . 1 Energy Cannon 3 | . . . . 2 1 . . Ballistic Gun 8 | 1 2 2 . 3 . . . Ballistic Cannon 4 | . . . . . 1 . 3 Launcher . | . . . . . . . . Special Weapon 2 | . . . . 1 . 1 . Impact Weapon . | . . . . . . . . Slashing Weapon . | . . . . . . . . Piercing Weapon . | . . . . . . . . Special Melee Weapon . | . . . . . . . . Unidentified Prototypes 4 | . . 1 . 2 . . 1 Parts Lost 26 | . 2 4 . 7 10 3 . Power 4 | . 1 1 . 1 1 . . Propulsion 10 | . . 1 . 5 4 . . Utility 3 | . . . . . 1 2 . Weapon 9 | . 1 2 . 1 4 1 . Highest Loss Streak 8 | . 2 3 . 3 8 3 . Average Slot Usage (%) 94 | . 97 98 96 98 95 40 54 Engine 4 | . 7 . . 2 4 . . Core 6 | . 6 13 11 5 2 . 2 Treads 9 | . 23 . . 1 6 . . Leg 4 | . . 11 . 8 3 . . Flight 14 | . 4 16 30 23 17 . . Device 4 | . . 1 11 9 6 . 5 Storage 6 | . 14 14 1 . . . . Processor 5 | . . . . 9 7 13 21 Hackware 10 | . . . 19 18 30 23 15 Protection 5 | . 11 12 . . . . . Energy Gun 9 | . 12 13 11 7 5 . 1 Ballistic Gun 10 | . 15 13 11 8 4 . . Naked Turns . | . . . . . . . . Heaviest Build 19 | 11 19 17 9 15 17 3 17 Greatest Support 40 | 40 40 10 15 27 20 3 12 Greatest Overweight (x) 3 | 2 3 2 . 2 1 . 2 Average Overweight (x) . | . . 1 . . . . . Largest Inventory Capacity 8 | 6 8 8 8 4 4 4 4 Average Capacity 5 | 5 6 8 4 4 4 4 4 Most Carried 8 | 6 8 8 8 4 4 4 3 Average Carried 5 | 5 6 7 4 3 3 2 2 Final Capacity 8 | 6 8 8 4 4 4 4 4 Final Carried 8 | 6 8 8 4 4 4 2 3 Class Distribution -------------------- 51% | Hacker-Mutant 38% | Mutant 9% | Scavenger-Mutant Dominant Class ---------------- Mutant | -10/Materials Scavenger-Mutant | -10/Mines Hacker-Mutant | -9/Materials Hacker-Mutant | -8/Materials Hacker-Mutant | -7/Factory Hacker-Mutant | -7/Garrison Hacker-Mutant | -7/Factory Resources | -11 -10 -10 -9 -8 -7 -7 -7 ----------- Run | Scr Mat Min Mat Mat Fac Gar Fac Matter Collected 1305 | 208 379 67 . 548 97 . 6 Remotely . | . . . . . . . . Salvage Created 1610 | . 432 138 . 984 50 . 6 Parts 92 | . 21 9 . 59 2 . 1 Haulers Intercepted 2 | . 1 . . 1 . . . Recyclers Shooed 2 | . . . . 2 . . . Parts Field Recycled . | . . . . . . . . Retrieved Matter . | . . . . . . . . Parts Self-Destructed . | . . . . . . . . Prevented . | . . . . . . . . Kills | -11 -10 -10 -9 -8 -7 -7 -7 ------- Run | Scr Mat Min Mat Mat Fac Gar Fac Combat Hostiles Destroyed 27 | . 8 5 . 13 1 . . Guns 21 | . 7 5 . 8 1 . . Cannons 1 | . . . . 1 . . . AOE 3 | . 1 . . 2 . . . Classes Destroyed 13 | . 4 1 . 7 1 . . Worker 1 | . . . . 1 . . . Builder 1 | . . . . 1 . . . Tunneler 1 | . . . . 1 . . . Hauler 2 | . 1 . . 1 . . . Recycler 3 | . . . . 3 . . . Operator 2 | . 1 . . . . . 1 Watcher 5 | . 2 . . 3 . . . Swarmer 6 | . . 3 . 3 . . . Grunt 13 | . 8 2 . 3 . . . Duelist 1 | . . . . 1 . . . Sentry 5 | . . . . 5 . . . Hunter 1 | . . . . 1 . . . Programmer 1 | . . . . . 1 . . Best Kill Streak 4 | . 2 3 . 4 1 . . Combat Bots Only 3 | . 2 3 . 3 1 . . Max Kills in Single Turn 2 | . 1 1 . 2 1 . 1 Gunslinging . | . . . . . . . . Exploded 2 | . 1 . . 2 . . . Melee . | . . . . . . . . Uniques/NPCs Destroyed . | . . . . . . . . Combat | -11 -10 -10 -9 -8 -7 -7 -7 -------- Run | Scr Mat Min Mat Mat Fac Gar Fac Damage Taken 2840 | . 447 329 . 762 628 664 10 Core 979 | . 71 84 . 119 136 559 10 Absorbed by Shields 82 | . . . . . . 82 . Core Remaining (%) 79 | 100 . 38 100 78 . . . Volleys Fired 155 | . 64 21 . 53 12 1 4 Largest 2 | . 2 2 . 2 2 1 1 Hottest 128 | . 85 70 . 128 118 30 48 Shots Fired 263 | . 123 29 . 91 15 1 4 Gun 237 | . 123 29 . 73 12 . . Cannon 23 | . . . . 16 3 . 4 Launcher . | . . . . . . . . Special 3 | . . . . 2 . 1 . Kinetic 155 | . 79 19 . 44 9 . 4 Thermal 79 | . 38 10 . 31 . . . Explosive . | . . . . . . . . Electromagnetic 28 | . 6 . . 16 6 . . Robot Hit Streak 11 | . 9 7 . 7 11 . 4 Robot Miss Streak 7 | . 7 1 . 2 1 . 1 Penetration Max . | . . . . . . . . Secondary Targets . | . . . . . . . . Shots Hit Robots 170 | . 76 21 . 58 12 . 3 Core Hits 82 | . 24 9 . 42 6 . 1 Critical Hits . | . . . . . . . . Critical Kills . | . . . . . . . . Critical Parts Destroyed . | . . . . . . . . Melee Attacks . | . . . . . . . . Impact . | . . . . . . . . Slashing . | . . . . . . . . Piercing . | . . . . . . . . Sneak Attacks . | . . . . . . . . Combat Hostiles . | . . . . . . . . Follow-up Attacks . | . . . . . . . . Damage Inflicted 2843 | . 993 203 . 1318 207 5 117 Guns 2046 | . 960 203 . 703 180 . . Cannons 435 | . . . . 313 5 . 117 Explosions 325 | . 33 . . 292 . . . Melee . | . . . . . . . . Ramming 27 | . . . . . 22 5 . Kinetic 1353 | . 559 95 . 406 176 . 117 Thermal 916 | . 374 108 . 434 . . . Explosive . | . . . . . . . . Electromagnetic 547 | . 60 . . 478 9 . . Impact . | . . . . . . . . Slashing . | . . . . . . . . Piercing . | . . . . . . . . Highest Corruption 9 | . . . . 7 9 9 9 Average Corruption 5 | . . . . 5 2 9 9 Corruption Purged . | . . . . . . . . Effects 88 | . . . . 71 6 3 8 Message Errors 27 | . . . . 22 1 1 3 Matter Fused 18 | . . . . 15 2 . 1 Heat Flow Errors 15 | . . . . 13 1 . 1 Energy Discharges 6 | . . . . 3 . 1 2 Data Loss (minor) 12 | . . . . 10 1 1 . Data Loss (major) 5 | . . . . 4 . . 1 Misfires 2 | . . . . 2 . . . Targeting Errors 3 | . . . . 2 1 . . Overload Shots . | . . . . . . . . Overflow Damage 47 | . . . . 34 . . 13 Projectiles 13 | . . . . . . . 13 Explosions 34 | . . . . 34 . . . Melee . | . . . . . . . . Knockbacks 3 | . . . . . . . 3 Impact . | . . . . . . . . Kinetic 3 | . . . . . . . 3 Secondary . | . . . . . . . . Self-Inflicted Damage 70 | . . . . 68 . 2 . Shots 2 | . . . . 2 . . . Rammed 17 | . . . . . 16 1 . Targets Rammed 17 | . . . . . 16 1 . Kicked . | . . . . . . . . Crushed . | . . . . . . . . Highest Temperature 304 | . 284 71 . 304 249 . 109 Average Temperature 79 | . 62 34 . 98 92 . 58 Received Heat Transfer 648 | . 216 150 . 225 . 51 6 Effects 4 | . . . . 4 . . . Energy Bleed 1 | . . . . 1 . . . Interference 3 | . . . . 3 . . . Siege Activations . | . . . . . . . . Robots Corrupted 3 | . . . . 3 . . . Combat Hostiles 2 | . . . . 2 . . . Parts Fried 5 | . . . . 5 . . . Impact Corruptions . | . . . . . . . . Robots Melted . | . . . . . . . . Combat Hostiles . | . . . . . . . . Parts Melted . | . . . . . . . . Heat Transferred 1953 | . 814 249 . 890 . . . Parts Sabotaged . | . . . . . . . . Parts Stolen . | . . . . . . . . Parts Stripped . | . . . . . . . . Power Chain Reactions 4 | . 1 . . 3 . . . Missiles Intercepted . | . . . . . . . . Alert | -11 -10 -10 -9 -8 -7 -7 -7 ------- Run | Scr Mat Min Mat Mat Fac Gar Fac Peak Influence 388 | . 155 140 17 388 94 117 60 Initial 60 | . . 60 . . 23 12 60 Average 66 | . 52 62 8 101 25 33 28 Maximum Alert Level 1 | . . . . 1 . . . Low Security (%) 91 | 100 100 100 100 76 100 100 100 Level 1 8 | . . . . 23 . . . Level 2 . | . . . . . . . . Level 3 . | . . . . . . . . Level 4 . | . . . . . . . . Level 5 . | . . . . . . . . High Security . | . . . . . . . . Max Security . | . . . . . . . . Squads Dispatched 6 | . . 1 . 3 2 . . Investigation 2 | . . 1 . 1 . . . Extermination 2 | . . . . . 2 . . Reinforcement 1 | . . . . 1 . . . Assault . | . . . . . . . . Garrison 1 | . . . . 1 . . . Intercept . | . . . . . . . . Construction Impeded . | . . . . . . . . Haulers Reinforced . | . . . . . . . . Stealth | -11 -10 -10 -9 -8 -7 -7 -7 --------- Run | Scr Mat Min Mat Mat Fac Gar Fac Distress Signals 6 | . . . . 5 . . 1 Communications Jammed . | . . . . . . . . Distress Signals . | . . . . . . . . Times Spotted 80 | . 21 5 . 32 4 14 4 Peak Tracking Total 10 | . 2 3 . 7 1 10 2 Tactical Retreats 13 | . . . . 10 . 3 . Traps | -11 -10 -10 -9 -8 -7 -7 -7 ------- Run | Scr Mat Min Mat Mat Fac Gar Fac Traps Triggered 12 | . 2 1 . 5 2 2 . Indirectly . | . . . . . . . . Trap Hack Attempts . | . . . . . . . . Triggered . | . . . . . . . . Disarmed . | . . . . . . . . Reprogrammed . | . . . . . . . . Reused . | . . . . . . . . Traps Extracted . | . . . . . . . . Installed . | . . . . . . . . Triggered 1 | . . . . 1 . . . Machines | -11 -10 -10 -9 -8 -7 -7 -7 ---------- Run | Scr Mat Min Mat Mat Fac Gar Fac Machines Disabled 5 | . 2 . . 3 . . . Max in Single Turn 1 | . 1 . . 1 . . . Garrison Access 1 | . . . . 1 . . . Machines Sabotaged . | . . . . . . . . Garrisons Compromised . | . . . . . . . . Overloaded Fab Kills . | . . . . . . . . Fab Network Shutdowns . | . . . . . . . . Hacking | -11 -10 -10 -9 -8 -7 -7 -7 --------- Run | Scr Mat Min Mat Mat Fac Gar Fac Machines Accessed 35 | . 11 2 4 11 4 . 3 Terminals 20 | . 8 . 3 6 . . 3 Fabricators 1 | . . . . . 1 . . Repair Stations 3 | . 1 . . 1 1 . . Recycling Units 5 | . 2 . 1 1 1 . . Scanalyzers 2 | . . . . 2 . . . Garrison Access 2 | . . . . 1 1 . . Total Hacks 117 | . 29 2 12 48 8 . 18 Successful 84 | . 24 2 8 30 6 . 14 Failed 33 | . 5 . 4 18 2 . 4 Catastrophic 3 | . . . 1 1 . . 1 Database Lockouts . | . . . . . . . . Manual 66 | . 22 . 8 24 . . 12 Terminals 85 | . 23 . 10 34 . . 18 Fabricators 3 | . . . . . 3 . . Repair Stations 4 | . 1 . . 1 2 . . Recycling Units 13 | . 5 . 2 4 2 . . Scanalyzers 8 | . . . . 8 . . . Garrison Access 2 | . . . . 1 1 . . Terminal Hacks 29 | . 8 2 3 10 . . 6 Record 4 | . 1 . 1 1 . . 1 Robot Analysis 3 | . 3 . . . . . . Prototype ID Bank 1 | . 1 . . . . . . Open Door 2 | . . 2 . . . . . Branch Access Points 2 | . 1 . . 1 . . . Terminal Index 2 | . 1 . 1 . . . . Alert Level 3 | . . . . 3 . . . Unreport Threat 7 | . 1 . 1 3 . . 2 Locate Traps 2 | . . . . 1 . . 1 Recall Investigation 1 | . . . . 1 . . . Hauler Manifests 1 | . . . . . . . 1 Zone Layout 1 | . . . . . . . 1 Fabricator Hacks 2 | . . . . . 2 . . Load Schematic 1 | . . . . . 1 . . Build 1 | . . . . . 1 . . Repair Station Hacks 2 | . . . . 1 1 . . Refit 2 | . . . . 1 1 . . Recycling Unit Hacks 9 | . 4 . 1 2 2 . . Report Inventory 5 | . 2 . 1 1 1 . . Retrieve Matter 1 | . 1 . . . . . . Retrieve Components 3 | . 1 . . 1 1 . . Scanalyzer 7 | . . . . 7 . . . Insert Component 3 | . . . . 3 . . . Analyze 4 | . . . . 4 . . . Garrison Access Hacks 2 | . . . . 1 1 . . Unlock Access 1 | . . . . . 1 . . Seal Access 1 | . . . . 1 . . . Unauthorized Hacks 33 | . 12 . 4 9 . . 8 Terminals 31 | . 11 . 4 8 . . 8 Track 10 | . 3 . 1 3 . . 3 Assimilate 4 | . 2 . . 1 . . 1 Botnet 13 | . 5 . 2 3 . . 3 Operators 4 | . 1 . 1 1 . . 1 Fabricators . | . . . . . . . . Repair Stations 1 | . 1 . . . . . . Mechanics 1 | . 1 . . . . . . Recycling Units . | . . . . . . . . Scanalyzers 1 | . . . . 1 . . . Researchers 1 | . . . . 1 . . . Garrison Access . | . . . . . . . . Data Cores Recovered . | . . . . . . . . Used . | . . . . . . . . Hacking Detections 28 | . 11 . 4 7 3 . 3 Full Trace Events . | . . . . . . . . Feedback Events . | . . . . . . . . Feedback Blocked . | . . . . . . . . Robot Schematics Acquired . | . . . . . . . . Robots Built . | . . . . . . . . Matter . | . . . . . . . . Time . | . . . . . . . . Total Robot Build Rating . | . . . . . . . . Part Schematics Acquired 3 | . . . . 3 . . . Parts Built 2 | . . . . . 2 . . Matter 124 | . . . . . 124 . . Time 31 | . . . . . 31 . . Total Part Build Rating 4 | . . . . . 4 . . Parts Repaired . | . . . . . . . . Time . | . . . . . . . . Parts Recycled . | . . . . . . . . Recycled Matter . | . . . . . . . . Retrieved Matter . | . . . . . . . . Retrieved Components 23 | . 10 . . 10 3 . . Parts Scanalyzed 3 | . . . . 3 . . . Part Schematics Acquired 3 | . . . . 3 . . . Parts Damaged . | . . . . . . . . Bothacking | -11 -10 -10 -9 -8 -7 -7 -7 ------------ Run | Scr Mat Min Mat Mat Fac Gar Fac Used RIF Installer 1 | . . . . . . 1 . Robots Hacked . | . . . . . . . . Non-combat . | . . . . . . . . Combat . | . . . . . . . . Robot Hacks Applied . | . . . . . . . . Relay Couplers Released . | . . . . . . . . Robots Rewired . | . . . . . . . . Allies Hacked . | . . . . . . . . Hacks Repelled . | . . . . . . . . Allies | -11 -10 -10 -9 -8 -7 -7 -7 -------- Run | Scr Mat Min Mat Mat Fac Gar Fac Total Allies 3 | . 1 1 . . . . 1 Largest Group 1 | . 1 1 . . . . 1 Highest-Rated Group 31 | . 10 31 . . . . 26 Highest-Rated Ally 31 | . 10 31 . . . . 26 Total Orders 4 | . 3 . . . . . 1 STAY 3 | . 2 . . . . . 1 FOLLOW 1 | . 1 . . . . . . Ally Attacks . | . . . . . . . . Total Damage . | . . . . . . . . Kills . | . . . . . . . . Allies Corrupted . | . . . . . . . . Allies Melted . | . . . . . . . . Intel | -11 -10 -10 -9 -8 -7 -7 -7 ------- Run | Scr Mat Min Mat Mat Fac Gar Fac Robot Analysis Total 3 | . 3 . . . . . . Derelict Logs Recovered 2 | . . 2 . . . . . Drone Launches . | . . . . . . . . Drone Recoveries . | . . . . . . . . Exploration | -11 -10 -10 -9 -8 -7 -7 -7 ------------- Run | Scr Mat Min Mat Mat Fac Gar Fac Turns Passed 7229 | 87 2603 788 85 2658 592 117 299 Spaces Moved 3838 | 52 925 491 199 1285 532 175 179 Core 281 | 20 . . . . 9 175 77 Treads 804 | 32 669 . . 89 14 . . Legs 427 | . . 401 . 26 . . . Wheels . | . . . . . . . . Hover 206 | . . . . 104 . . 102 Flight 2120 | . 256 90 199 1066 509 . . Fastest Speed 31 | 50 117 117 34 31 50 50 50 Average Speed 92 | 138 148 144 34 56 61 50 101 Slowest Speed 280 | 160 280 200 34 185 160 50 180 Overloaded Moves . | . . . . . . . . Propulsion Burnouts . | . . . . . . . . Robots Hopped 21 | . . . 1 14 6 . . Cave-ins Triggered . | . . . . . . . . Exploration Rate (%) 42 | 4 90 83 19 75 18 45 5 Regions Visited 7 Branch Regions 1 Pre-discovered Areas 1 | . . 1 . . . . . Known Exits Taken 3 | . 1 . . 1 1 . . Unknown Exits Taken 3 | 1 . 1 1 . . . . Scrap Searched 2 | . . 2 . . . . . Spaces Dug . | . . . . . . . . Terrain Destroyed 15 | . 2 . . 13 . . . Melee . | . . . . . . . . Projectile . | . . . . . . . . AOE 15 | . 2 . . 13 . . . Terrain Rammed . | . . . . . . . . Walls Destroyed . | . . . . . . . . Machines Disabled . | . . . . . . . . Actions | -11 -10 -10 -9 -8 -7 -7 -7 --------- Run | Scr Mat Min Mat Mat Fac Gar Fac Total 7252 | 64 2038 546 216 3124 771 202 291 Wait 3088 | . 1021 19 8 1739 197 7 97 Move 3788 | 51 924 490 196 1256 519 173 179 Hop 21 | . . . 1 14 6 . . Pick Up 34 | 7 7 5 3 8 4 . . Fast Attach 42 | 5 7 3 . 15 6 . 6 Attach 20 | 1 . 2 4 5 4 2 2 Detach 7 | . . . . 2 2 . 3 Swap 17 | . 3 1 . 13 . . . Drop 45 | . 12 5 4 19 5 . . Fire 155 | . 64 21 . 53 12 1 4 Melee . | . . . . . . . . Ram 1 | . . . . . . 1 . Kick . | . . . . . . . . Crush 16 | . . . . . 16 . . Escape Stasis 18 | . . . . . . 18 . Rewire . | . . . . . . . . Trap . | . . . . . . . . Miscellaneous . | . . . . . . . . Route ------- -11/Scrapyard -10/Materials (discovered 4 exits: *Mat x3 / *Min) -10/Mines -9/Materials -8/Materials (discovered 2 exits: *Fac x2) -7/Factory (discovered 2 exits: Sto / Gar) -7/Garrison -7/Factory History --------- Turn | Location | Event 11 | -11/Scrapyard | Discovered new exit (range 15) 88 | -11/Scrapyard | Entered Materials 309 | -10/Materials | Build established: Mutant 1306 | -10/Materials | Discovered new exit (range 14) 1741 | -10/Materials | Discovered new exit (range 16) 2326 | -10/Materials | Identified exit to Mines 2607 | -10/Materials | Discovered new exit (range 15) 2691 | -10/Materials | Entered Mines 2694 | -10/Mines | Met a Derelict shopkeep closing up shop 2731 | -10/Mines | Learned location of Storage (-7) 2850 | -10/Mines | Core integrity fell below 50% 2866 | -10/Mines | Lost 3 parts (1p1n1w) 3140 | -10/Mines | Build established: Scavenger-Mutant 3357 | -10/Mines | Found a damaged Exp. Sensor Array with a note attached 3363 | -10/Mines | Found Prototype Device 3365 | -10/Mines | Identified Exp. Sensor Array 3408 | -10/Mines | Met a Derelict who couldn't figure out how to use a Trap Extractor 3440 | -10/Mines | Discovered new exit (range 8) 3450 | -10/Mines | Received a Mining Laser from a helpful Derelict 3479 | -10/Mines | Entered Materials 3479 | -9/Materials | Evolved 2 slots: Propulsion x1, Utility x1 3545 | -9/Materials | Discovered new exit (range 10) 3564 | -9/Materials | Entered another Materials area 3564 | -8/Materials | Evolved 2 slots: Propulsion x1, Utility x1 3796 | -8/Materials | Build established: Hacker-Mutant 4090 | -8/Materials | Garrison activated, responded to threat 5760 | -8/Materials | Discovered new exit (range 10) 6049 | -8/Materials | Lost 3 parts (1p2n) 6213 | -8/Materials | Discovered new exit (range 11) 6220 | -8/Materials | Identified exit to Factory 6222 | -8/Materials | Entered Factory 6222 | -7/Factory | Evolved 2 slots: Utility x2 6223 | -7/Factory | Identified exit to Storage 6538 | -7/Factory | Fabricated VTOL Module (x2) 6813 | -7/Factory | Identified exit to Garrison 6814 | -7/Factory | Entered Garrison 6828 | -7/Garrison | Triggered checkpoint 6841 | -7/Garrison | Lost 8 parts (1p4n1u2w) 6892 | -7/Garrison | Core integrity fell below 50% 6917 | -7/Garrison | Lost 3 parts (2u1w) 6919 | -7/Garrison | Core integrity fell below 20% 6922 | -7/Garrison | Discovered new exit (range 8) 6925 | -7/Garrison | Identified exit to Factory 6928 | -7/Garrison | Installed Relay Interface Framework 6931 | -7/Garrison | Entered Factory 7230 | -7/Factory | Destroyed by Y-54 Guardian with Gatling Laser Last Messages --------------- >>Query(Titan) The largest [ISC] spacecraft ever manufactured, built specifically for exploring extra-solar space. Although powered by subluminal drives capable of reaching only 17% the speed of light, each ship is capable of perpetually sustaining a crew of thousands, making interstellar space travel a possibility for the first time in [Human] history. >>Traps(Locate) Found 4 traps in 1 array: 4x Alarm Trap Map updated. System corrupted: Matter fused (-8). Acquired Prototype Energy Gun. Identified Imp. Spread Laser. System corrupted: Heat flow error (+135). System corrupted: Energy discharge (-39). KSL2UQMWLC6KRRQU9G3|GOX W-25 Informer sends out distress signal. Map ----- +----------------------------------------------------+ | ???# k T" ## ????????????????????? | | ???# "" ## ????????????????????? | | ???# "" ## ????????????????????? | | ???# ## ????????????????????? | | ####+#######+################????????????????????? | | #########?????##????????????????????? | | # #?????# ????????????????????? | | "" """ """ # #?????# ????????????????????? | | "" """ """ # #?????# ????????????????????? | | "" """ """ # #?????# ????????????????????? | | # ####### ????????????????????? | | + # # ????????????????????? | | #####+#########"" ##????????????????????? | | #??# ! ##"" #?????????????????????? | | ####+####?# """ ! ##""" #?????????????????????? | | ?# #?# "T" |##""" #?????????????????????? | | ??????????# #????????????????????????????? | | ??????????# """ """ #????????????????????????????? | | ??????????# """ """ #????????????????????????????? | | ??????????# """ """ #????????????#???????????????? | | ??????????# #??????????? #???????????????? | | ??????????#####+#####?????????? #???????????????? | | ???????^???# #?????????? ##??????????????? | | ???^???????# #######+## #??????????????? | | ???????????# w #??????????????? | | ???^?????? + @ #??????????????? | | ?????????" # #??????????????? | | ????????"" # #######Y## #??????????????? | | ?????^?"""?# #?????? #?? ###??????????????? | | ??????"""??## ##?????? #???????????????????? | | ?????? ????# #???????[ ##???????????????????? | | ??########### #???????? #????????????????????? | | ??# """ ! ! + #???????? #????????????????????? | | ??# "T" # #???????? #????????????????????? | | ??# !# #???????? #????????????????????? | | ??# # #?????????#????????????????????? | | ??# """ """ # #??????????????????????????????? | | ??# """ """ # #??????????????????????????????? | | ??# """ """ # #??????????????????????????????? | | ??# # #??????????????????????????????? | | ??########### #??????????????????????????????? | | ????????????# #??????????????????????????????? | | ????????????# ##########?????????????????????? | | ????????????# # #?????????????????????? | | ????????????# # #?????????????????????? | | ????????????# # #?????????????????????? | | ????????????# + #?????????????????????? | | ????????????# # #?????????????????????? | | ????????????# # ^ #?????????????????????? | | ????????????# # #?????????????????????? | +----------------------------------------------------+ Best States ------------- Heat Dissipation 34 Energy Generation 15 Energy Capacity 265 Matter Stores 300 Matter Capacity 300 Sight Range 22 Robot Scan Range 30 Terrain Scan Density 10 Core Shielding 20 Evasion (%) 63 Recoil Reduction 2 Offensive Hacking 20 Defensive Hacking 20 Item Schematics ----------------- System Shield | -8/Materials | Scanalyzed VTOL Module | -8/Materials | Scanalyzed Hacking Suite | -8/Materials | Scanalyzed Robot Schematics ------------------ None Fabricated ------------ VTOL Module | x2 | -7/Factory Alien Tech Used ----------------- None Achievements -------------- None Challenges ------------ None Game ------ Seed LegWarpStreamer Manual? 0 Play Time 00:46:46 Cumulative 21.4 hours Start 2021.09.24 @ 20:25:04 End 2021.09.24 @ 21:08:33 Sessions 1 Manual Loads 0 Difficulty Rogue Special Mode None Game No. 53 Rogue 44 Adventurer 9 Explorer 0 Win Type - Total 0 Types 0/0/0/0/0/0/0/0/0 Lore% 23 Gallery% 34 Achievement% 33 Wizard Run 0 Options --------- ASCII 0 Keyboard 0 Movement Numpad Keybinds 0 Fullscreen 1 Font 16/SmallcapsGlow Map View 50x54 Tactical HUD 0 Map Filters NONE Filters NONE Steam 1 RUN: 7962358d-857e-4d71-88cc-c71b7817ffa3